fUST/lending_fUST_20250901
["ID","MTS","AMOUNT","RATE_DAILY","PERIOD"]
[382616605,1756679439174,-500.0,0.00016492,2]
[382616616,1756679439282,-500.0,0.00016492,2]
[382616628,1756679439389,-500.0,0.00016492,2]
[382616639,1756679439493,-500.0,0.00016492,2]
[382616651,1756679439601,-500.0,0.00016492,2]
[382616663,1756679439709,-1000.0,0.00016492,2]
[382616677,1756679439817,-1000.0,0.00016492,2]
[382616690,1756679439924,-500.0,0.00016492,2]
[382616714,1756679440314,-300.0,0.00016498,2]
[382616715,1756679440415,-300.0,0.00016498,2]
[382616716,1756679440520,-300.0,0.00016498,2]
[382616717,1756679440619,-300.0,0.00016498,2]
[382616718,1756679440726,-300.0,0.00016498,2]
[382616719,1756679440831,-500.0,0.00016499,2]
[382616720,1756679440932,-500.0,0.00016499,2]
[382616721,1756679441038,-500.0,0.00016499,2]
[382616722,1756679441145,-500.0,0.00016499,2]
[382616731,1756679441250,-500.0,0.00016499,2]
[382616732,1756679441355,-545.47978613,0.00016499,2]
[382616733,1756679441454,-429.05042774,0.00016499,2]
[382616734,1756679441813,-437.75304342,0.00016492,2]
[382616735,1756679441914,-50.94957226,0.00016499,2]
[382616736,1756679442015,-480.0,0.00016499,2]
[382616737,1756679442118,-480.0,0.00016499,2]
[382616738,1756679442223,-604.96,0.00016499,2]
[382616739,1756679442329,-480.0,0.00016499,2]
[382616740,1756679442435,-422.27786593,0.000165,2]
[382616741,1756679442538,-480.0,0.000165,2]
[382616743,1756679442640,-480.0,0.000165,2]
[382616749,1756679442744,-480.0,0.000165,2]
[382616750,1756679442849,-272.85903678,0.000165,2]
[382616752,1756679443228,-480.0,0.00016499,2]
[382616753,1756679443338,-662.41096322,0.000165,2]
[382616754,1756679443449,-480.0,0.000165,2]
[382616756,1756679443558,-480.0,0.000165,2]
[382616763,1756679443666,-988.75,0.000165,2]
[382616764,1756679443776,-480.0,0.000165,2]
[382616765,1756679443883,-480.0,0.000165,2]
[382616766,1756679443994,-803.92,0.000165,2]
[382616767,1756679444565,-480.0,0.00016499,2]
[382616768,1756679444672,-480.0,0.000165,2]
[382616769,1756679444781,-480.0,0.000165,2]
[382616770,1756679444886,-513.55,0.000165,2]
[382616771,1756679444997,-480.0,0.000165,2]
[382616772,1756679445107,-892.63,0.000165,2]
[382616773,1756679445218,-480.0,0.000165,2]
[382616777,1756679445327,-813.46,0.000165,2]
[382616778,1756679445436,-5.11,0.000165,2]
[382616781,1756679445555,-750.51,0.000165,2]
[382616782,1756679445565,-480.0,0.000165,2]
[382616783,1756679445575,-5000.0,0.000165,2]
[382616784,1756679445584,-480.0,0.000165,2]
[382616785,1756679445594,-812.44,0.000165,2]
[382616786,1756679445603,-480.0,0.000165,2]
[382616787,1756679445612,-1969.67,0.000165,2]
[382616788,1756679445622,-480.0,0.000165,2]
[382616789,1756679445632,-500.0,0.000165,2]
[382616791,1756679445640,-480.0,0.000165,2]
[382616793,1756679445649,-480.0,0.000165,2]
[382616794,1756679445659,-606.37,0.000165,2]
[382616795,1756679445668,-480.0,0.000165,2]
[382616796,1756679445678,-480.0,0.000165,2]
[382616797,1756679445687,-915.34,0.000165,2]
[382616798,1756679445697,-480.0,0.000165,2]
[382616800,1756679445706,-480.0,0.000165,2]
[382616801,1756679445716,-218.60644179,0.000165,2]
[382616803,1756679445727,-480.0,0.000165,2]
[382616804,1756679445738,-622.73,0.000165,2]
[382616805,1756679445747,-480.0,0.000165,2]
[382616806,1756679445757,-480.0,0.000165,2]
[382616807,1756679445766,-480.0,0.000165,2]
[382616808,1756679445776,-951.37,0.000165,2]
[382616809,1756679445786,-833.72,0.000165,2]
[382616810,1756679445796,-480.0,0.000165,2]
[382616811,1756679445806,-480.0,0.000165,2]
[382616812,1756679445816,-480.0,0.000165,2]
[382616813,1756679445826,-480.0,0.000165,2]
[382616814,1756679445837,-480.0,0.000165,2]
[382616815,1756679445847,-480.0,0.000165,2]
[382616816,1756679445857,-480.0,0.000165,2]
[382616817,1756679445867,-526.5,0.000165,2]
[382616818,1756679445877,-732.56,0.000165,2]
[382616819,1756679445887,-481.45,0.000165,2]
[382616820,1756679445896,-480.0,0.000165,2]
[382616821,1756679445906,-480.0,0.000165,2]
[382616822,1756679445916,-4272.48,0.000165,2]
[382616823,1756679445927,-1977.22,0.000165,2]
[382616824,1756679445936,-480.0,0.000165,2]
[382616825,1756679445946,-480.0,0.000165,2]
[382616826,1756679445958,-480.0,0.000165,2]
[382616827,1756679445968,-480.0,0.000165,2]
[382616828,1756679445979,-480.0,0.000165,2]
[382616829,1756679445989,-571.71987851,0.000165,2]
[382616830,1756679446001,-1190.84,0.000165,2]
[382616831,1756679446012,-480.0,0.000165,2]
[382616832,1756679446023,-480.0,0.000165,2]
[382616833,1756679446033,-690.47,0.000165,2]
[382616834,1756679446043,-1575.69,0.000165,2]
[382616835,1756679446054,-1980.13,0.000165,2]
[382616836,1756679446065,-480.0,0.000165,2]
[382616837,1756679446075,-480.0,0.000165,2]
[382616838,1756679446085,-500.78,0.000165,2]
[382616839,1756679446095,-940.63,0.000165,2]
[382616840,1756679446106,-480.0,0.000165,2]
[382616841,1756679446116,-792.5,0.000165,2]
[382616842,1756679446126,-480.0,0.000165,2]
[382616843,1756679446136,-480.0,0.000165,2]
[382616844,1756679446145,-777.66,0.000165,2]
[382616845,1756679446157,-480.0,0.000165,2]
[382616846,1756679446168,-480.0,0.000165,2]
[382616847,1756679446178,-538.27,0.000165,2]
[382616848,1756679446189,-481.7,0.000165,2]
[382616849,1756679446200,-480.0,0.000165,2]
[382616850,1756679446211,-480.0,0.000165,2]
[382616851,1756679446222,-480.0,0.000165,2]
[382616852,1756679446232,-480.0,0.000165,2]
[382616853,1756679446244,-480.0,0.000165,2]
[382616854,1756679446265,-480.0,0.000165,2]
[382616855,1756679446275,-480.0,0.000165,2]
[382616856,1756679446285,-747.13,0.000165,2]
[382616857,1756679446295,-795.55,0.000165,2]
[382616858,1756679446306,-480.0,0.000165,2]
[382616859,1756679446317,-606.07,0.000165,2]
[382616860,1756679446327,-480.0,0.000165,2]
[382616861,1756679446337,-480.0,0.000165,2]
[382616862,1756679446347,-160.0,0.000165,2]
[382616863,1756679446357,-340.52089374,0.00016501,2]
[382616864,1756679446367,-480.0,0.00016501,2]
[382616865,1756679446377,-480.0,0.00016501,2]
[382616866,1756679446387,-480.0,0.00016501,2]
[382616867,1756679446396,-480.0,0.00016501,2]
[382616868,1756679446406,-480.0,0.00016501,2]
[382616869,1756679446417,-1201.4,0.00016501,2]
[382616870,1756679446427,-1201.4,0.00016501,2]
[382616871,1756679446436,-1201.4,0.00016501,2]
[382616872,1756679446446,-480.0,0.00016501,2]
[382616873,1756679446457,-480.0,0.00016501,2]
[382616874,1756679446467,-480.0,0.00016501,2]
[382616875,1756679446478,-505.05,0.00016501,2]
[382616876,1756679446487,-480.0,0.00016501,2]
[382616877,1756679446498,-480.0,0.00016501,2]
[382616878,1756679446508,-480.0,0.00016501,2]
[382616879,1756679446518,-480.0,0.00016501,2]
[382616880,1756679446528,-480.0,0.00016501,2]
[382616881,1756679446538,-494.44,0.00016501,2]
[382616882,1756679446547,-480.0,0.00016501,2]
[382616883,1756679446557,-480.0,0.00016501,2]
[382616884,1756679446567,-480.0,0.00016501,2]
[382616885,1756679446577,-480.0,0.00016501,2]
[382616886,1756679446587,-480.0,0.00016501,2]
[382616887,1756679446596,-480.0,0.00016501,2]
[382616888,1756679446606,-480.0,0.00016501,2]
[382616889,1756679446615,-480.0,0.00016501,2]
[382616890,1756679446625,-480.0,0.00016501,2]
[382616891,1756679446635,-480.0,0.00016501,2]
[382616892,1756679446645,-480.0,0.00016501,2]
[382616893,1756679446655,-480.0,0.00016501,2]
[382616894,1756679446666,-480.0,0.00016501,2]
[382616895,1756679446675,-480.0,0.00016501,2]
[382616896,1756679446686,-480.0,0.00016501,2]
[382616897,1756679446696,-480.0,0.00016501,2]
[382616898,1756679446706,-480.0,0.00016501,2]
[382616899,1756679446716,-480.0,0.00016501,2]
[382616901,1756679446726,-480.0,0.00016501,2]
[382616903,1756679446736,-480.0,0.00016501,2]
[382616905,1756679446747,-480.0,0.00016501,2]
[382616906,1756679446759,-480.0,0.00016501,2]
[382616907,1756679446769,-676.04,0.00016501,2]
[382616908,1756679446780,-480.0,0.00016501,2]
[382616909,1756679446791,-559.84,0.00016501,2]
[382616910,1756679446802,-480.0,0.00016501,2]
[382616911,1756679446812,-480.0,0.00016501,2]
[382616912,1756679446823,-480.0,0.00016501,2]
[382616913,1756679446833,-480.0,0.00016501,2]
[382616914,1756679446844,-480.0,0.00016501,2]
[382616915,1756679446854,-480.0,0.00016501,2]
[382616916,1756679446864,-480.0,0.00016501,2]
[382616917,1756679446875,-480.0,0.00016501,2]
[382616918,1756679446885,-480.0,0.00016501,2]
[382616919,1756679446896,-480.0,0.00016501,2]
[382616920,1756679446906,-480.0,0.00016501,2]
[382616921,1756679446916,-480.0,0.00016501,2]
[382616922,1756679446927,-480.0,0.00016501,2]
[382616923,1756679446939,-480.0,0.00016501,2]
[382616924,1756679446949,-480.0,0.00016501,2]
[382616925,1756679446959,-480.0,0.00016501,2]
[382616926,1756679446970,-480.0,0.00016501,2]
[382616927,1756679446981,-480.0,0.00016501,2]
[382616928,1756679446992,-612.95439671,0.00016501,2]
[382616929,1756679447002,-480.0,0.00016501,2]
[382616930,1756679447017,-198.0,0.00016501,2]
[382616931,1756679447028,-151.0,0.00016501,2]
[382616932,1756679447039,-198.0,0.00016501,2]
[382616933,1756679447049,-151.0,0.00016501,2]
[382616934,1756679447060,-480.0,0.00016501,2]
[382616935,1756679447070,-500.0,0.00016501,2]
[382616936,1756679447081,-151.0,0.00016501,2]
[382616937,1756679447092,-198.0,0.00016501,2]
[382616938,1756679447103,-151.0,0.00016501,2]
[382616939,1756679447117,-198.0,0.00016501,2]
[382616940,1756679447128,-151.0,0.00016501,2]
[382616941,1756679447139,-1040.07,0.00016501,2]
[382616942,1756679447149,-480.0,0.00016501,2]
[382616943,1756679447160,-480.0,0.00016501,2]
[382616944,1756679447170,-401.32617382,0.00016501,2]
[382616945,1756679447181,-151.0,0.00016501,2]
[382616946,1756679447192,-151.0,0.00016501,2]
[382616947,1756679447202,-242.19928668,0.00016501,2]
[382616949,1756679447213,-500.0,0.00016501,2]
[382616950,1756679447223,-480.0,0.00016501,2]
[382616951,1756679447234,-480.0,0.00016501,2]
[382616952,1756679447245,-480.0,0.00016501,2]
[382616953,1756679447257,-480.0,0.00016501,2]
[382616954,1756679447267,-480.0,0.00016501,2]
[382616955,1756679447279,-480.0,0.00016501,2]
[382616956,1756679447463,-480.0,0.00016501,2]
[382616957,1756679447474,-866.45,0.00016501,2]
[382616958,1756679447483,-480.0,0.00016501,2]
[382616959,1756679447493,-480.0,0.00016501,2]
[382616960,1756679447502,-484.91050785,0.00016501,2]
[382616961,1756679447513,-6102.28,0.00016501,2]
[382616962,1756679447523,-488.33,0.00016501,2]
[382616963,1756679447532,-480.0,0.00016501,2]
[382616964,1756679447542,-480.0,0.00016501,2]
[382616965,1756679447553,-1340.55,0.00016501,2]
[382616966,1756679447564,-480.0,0.00016501,2]
[382616967,1756679447574,-480.0,0.00016501,2]
[382616968,1756679447584,-1237.62,0.00016501,2]
[382616969,1756679447594,-480.0,0.00016501,2]
[382616970,1756679447604,-480.0,0.00016501,2]
[382616971,1756679447615,-480.0,0.00016501,2]
[382616972,1756679447625,-480.0,0.00016501,2]
[382616973,1756679447635,-4649.07,0.00016501,2]
[382616974,1756679447645,-583.5,0.00016501,2]
[382616975,1756679447655,-480.0,0.00016501,2]
[382616976,1756679447664,-482.7570103,0.00016501,2]
[382616977,1756679447674,-480.0,0.00016501,2]
[382616978,1756679447685,-5403.0,0.00016501,2]
[382616979,1756679447695,-480.0,0.00016501,2]
[382616980,1756679447706,-480.0,0.00016501,2]
[382616981,1756679447716,-480.0,0.00016501,2]
[382616982,1756679447726,-480.0,0.00016501,2]
[382616983,1756679447736,-480.0,0.00016501,2]
[382616984,1756679447746,-481.12814767,0.00016501,2]
[382616985,1756679447757,-500.0,0.00016501,2]
[382616986,1756679447767,-500.0,0.00016501,2]
[382616987,1756679447777,-480.0,0.00016501,2]
[382616988,1756679447787,-216.52043987,0.00016501,2]
[382616989,1756679447797,-481.09469984,0.00016501,2]
[382616990,1756679447806,-1152.65,0.00016501,2]
[382616991,1756679447816,-447.15716956,0.00016501,2]
[382616992,1756679447826,-480.0,0.00016501,2]
[382616993,1756679447836,-480.0,0.00016501,2]
[382616994,1756679447845,-480.0,0.00016501,2]
[382616995,1756679447855,-480.0,0.00016501,2]
[382616996,1756679447865,-480.0,0.00016501,2]
[382616997,1756679447874,-312.43713229,0.00016501,2]
[382616998,1756679447885,-480.0,0.00016501,2]
[382616999,1756679447894,-480.0,0.00016501,2]
[382617000,1756679447904,-480.0,0.00016501,2]
[382617001,1756679447914,-480.0,0.00016501,2]
[382617003,1756679447924,-480.0,0.00016501,2]
[382617004,1756679447934,-1077.58,0.00016501,2]
[382617005,1756679447943,-480.0,0.00016501,2]
[382617006,1756679447953,-480.0,0.00016501,2]
[382617007,1756679447963,-2435.07,0.00016501,2]
[382617008,1756679447973,-480.0,0.00016501,2]
[382617009,1756679447983,-1113.46,0.00016501,2]
[382617010,1756679447994,-480.0,0.00016501,2]
[382617011,1756679448005,-500.0,0.00016501,2]
[382617012,1756679448015,-347.7394083,0.00016502,2]
[382617013,1756679448025,-480.0,0.00016502,2]
[382617014,1756679448035,-155.7561095,0.00016502,2]
[382617016,1756679448046,-480.0,0.00016502,2]
[382617018,1756679448056,-574.56,0.00016502,2]
[382617020,1756679448066,-480.0,0.00016502,2]
[382617022,1756679448076,-480.0,0.00016502,2]
[382617024,1756679448086,-551.1974654,0.00016502,2]
[382617026,1756679448096,-510.7510522,0.00016502,2]
[382617028,1756679448106,-480.0,0.00016502,2]
[382617029,1756679448116,-480.0,0.00016502,2]
[382617030,1756679448126,-500.0,0.00016502,2]
[382617031,1756679448137,-480.0,0.00016502,2]
[382617032,1756679448147,-480.0,0.00016502,2]
[382617033,1756679448157,-480.0,0.00016502,2]
[382617034,1756679448168,-480.0,0.00016502,2]
[382617035,1756679448178,-480.0,0.00016502,2]
[382617036,1756679448189,-480.0,0.00016502,2]
[382617037,1756679448200,-480.0,0.00016502,2]
[382617038,1756679448210,-480.0,0.00016502,2]
[382617039,1756679448223,-480.0,0.00016502,2]
[382617040,1756679448234,-480.0,0.00016502,2]
[382617041,1756679448247,-297.60048262,0.00016502,2]
[382617042,1756679448263,-480.0,0.00016502,2]
[382617043,1756679448275,-480.0,0.00016502,2]
[382617044,1756679448286,-480.0,0.00016502,2]
[382617045,1756679448298,-480.0,0.00016502,2]
[382617046,1756679448309,-480.0,0.00016502,2]
[382617047,1756679448320,-239.35076144,0.00016502,2]
[382617048,1756679448332,-151.0,0.00016502,2]
[382617049,1756679448342,-949.34,0.00016502,2]
[382617050,1756679448353,-151.0,0.00016502,2]
[382617051,1756679448363,-151.0,0.00016502,2]
[382617052,1756679448373,-480.0,0.00016502,2]
[382617053,1756679448383,-480.0,0.00016502,2]
[382617054,1756679448393,-480.0,0.00016502,2]
[382617055,1756679448403,-480.0,0.00016502,2]
[382617056,1756679448413,-487.45,0.00016502,2]
[382617057,1756679448423,-508.74794958,0.00016502,2]
[382617058,1756679448433,-480.0,0.00016502,2]
[382617059,1756679448443,-480.0,0.00016502,2]
[382617060,1756679448453,-734.1,0.00016502,2]
[382617061,1756679448463,-480.0,0.00016502,2]
[382617062,1756679448473,-480.0,0.00016502,2]
[382617063,1756679448483,-480.0,0.00016502,2]
[382617064,1756679448493,-480.0,0.00016502,2]
[382617065,1756679448503,-480.0,0.00016502,2]
[382617066,1756679448514,-1123.32,0.00016502,2]
[382617067,1756679448524,-540.81,0.00016502,2]
[382617068,1756679448535,-480.0,0.00016502,2]
[382617069,1756679448544,-480.0,0.00016502,2]
[382617070,1756679448555,-480.0,0.00016502,2]
[382617071,1756679448565,-480.0,0.00016502,2]
[382617072,1756679448575,-480.0,0.00016502,2]
[382617073,1756679448585,-480.0,0.00016502,2]
[382617074,1756679448595,-547.13,0.00016502,2]
[382617075,1756679448605,-480.0,0.00016502,2]
[382617076,1756679448615,-480.0,0.00016502,2]
[382617077,1756679448625,-480.0,0.00016502,2]
[382617078,1756679448635,-483.62,0.00016502,2]
[382617079,1756679448645,-480.0,0.00016502,2]
[382617080,1756679448655,-480.0,0.00016502,2]
[382617081,1756679448665,-480.0,0.00016502,2]
[382617082,1756679448675,-735.23,0.00016502,2]
[382617083,1756679448685,-845.48,0.00016502,2]
[382617084,1756679448695,-678.42,0.00016502,2]
[382617085,1756679448705,-480.0,0.00016502,2]
[382617086,1756679448715,-480.0,0.00016502,2]
[382617087,1756679448725,-480.0,0.00016502,2]
[382617088,1756679448735,-480.0,0.00016502,2]
[382617089,1756679448745,-480.0,0.00016502,2]
[382617090,1756679448755,-480.0,0.00016502,2]
[382617091,1756679448766,-279.75704902,0.00016502,2]
[382617092,1756679448776,-546.32,0.00016502,2]
[382617093,1756679448787,-480.0,0.00016502,2]
[382617094,1756679448797,-480.0,0.00016502,2]
[382617095,1756679448807,-480.0,0.00016502,2]
[382617096,1756679448817,-703.43,0.00016502,2]
[382617097,1756679448827,-895.19,0.00016502,2]
[382617098,1756679448838,-1584.81,0.00016502,2]
[382617099,1756679448848,-480.0,0.00016502,2]
[382617100,1756679448858,-345.62403069,0.00016502,2]
[382617101,1756679448868,-480.0,0.00016502,2]
[382617102,1756679448878,-620.96,0.00016502,2]
[382617103,1756679448889,-480.0,0.00016502,2]
[382617104,1756679448899,-480.0,0.00016502,2]
[382617105,1756679448909,-201.02901203,0.00016502,2]
[382617106,1756679448919,-480.0,0.00016502,2]
[382617107,1756679448928,-1201.4,0.00016503,2]
[382617108,1756679448938,-500.0,0.00016503,2]
[382617109,1756679448948,-623.11821655,0.00016505,2]
[382617110,1756679448958,-812.03082567,0.00016565,2]
[382617111,1756679448968,-151.0,0.000166,2]
[382617112,1756679448977,-2683.81377009,0.00016607,2]
[382617113,1756679448987,-381.0,0.0001661,2]
[382617114,1756679448997,-168.0,0.00016628,2]
[382617115,1756679449007,-381.0,0.00016633,2]
[382617116,1756679449018,-629.71,0.00016653,3]
[382617117,1756679449027,-254.89319191,0.00016663,2]
[382617118,1756679449038,-201.18,0.00016663,3]
[382617119,1756679449047,-603.54,0.00016663,3]
[382617120,1756679449058,-168.0,0.0001667,2]
[382617121,1756679449067,-1201.4,0.00016672,2]
[382617122,1756679449077,-480.0,0.00016673,2]
[382617123,1756679449087,-480.0,0.00016673,2]
[382617124,1756679449097,-742.71,0.00016673,2]
[382617125,1756679449107,-1201.4,0.00016673,2]
[382617126,1756679449117,-480.0,0.00016673,2]
[382617127,1756679449127,-480.0,0.00016673,2]
[382617128,1756679449137,-480.0,0.00016673,2]
[382617129,1756679449146,-480.0,0.00016673,2]
[382617130,1756679449156,-998.97,0.00016673,2]
[382617131,1756679449166,-479.83997074,0.00016673,2]
[382617132,1756679449176,-480.0,0.00016673,2]
[382617133,1756679449186,-480.0,0.00016673,2]
[382617134,1756679449195,-480.0,0.00016673,2]
[382617135,1756679449206,-480.0,0.00016673,2]
[382617136,1756679449216,-480.0,0.00016673,2]
[382617137,1756679449226,-758.3,0.00016673,2]
[382617138,1756679449237,-727.58,0.00016673,2]
[382617139,1756679449247,-480.0,0.00016673,2]
[382617140,1756679449257,-480.0,0.00016673,2]
[382617141,1756679449267,-610.94,0.00016673,2]
[382617142,1756679449277,-480.0,0.00016673,2]
[382617143,1756679449289,-480.0,0.00016673,2]
[382617144,1756679449300,-480.0,0.00016673,2]
[382617145,1756679449310,-789.86,0.00016673,2]
[382617146,1756679449320,-480.0,0.00016673,2]
[382617147,1756679449329,-480.0,0.00016673,2]
[382617148,1756679449339,-943.21,0.00016673,2]
[382617149,1756679449349,-480.0,0.00016673,2]
[382617150,1756679449359,-480.0,0.00016673,2]
[382617151,1756679449369,-912.78,0.00016673,2]
[382617152,1756679449379,-480.0,0.00016673,2]
[382617153,1756679449390,-480.0,0.00016673,2]
[382617154,1756679449400,-480.0,0.00016673,2]
[382617155,1756679449410,-480.0,0.00016673,2]
[382617156,1756679449420,-501.85,0.00016673,2]
[382617157,1756679449430,-480.0,0.00016673,2]
[382617158,1756679449439,-480.0,0.00016673,2]
[382617159,1756679449449,-801.5,0.00016673,2]
[382617160,1756679449458,-914.88,0.00016673,2]
[382617161,1756679449469,-929.01,0.00016673,2]
[382617162,1756679449479,-988.27,0.00016673,2]
[382617163,1756679449488,-480.0,0.00016673,2]
[382617164,1756679449498,-480.0,0.00016673,2]
[382617165,1756679449507,-1109.5,0.00016673,2]
[382617166,1756679449518,-926.74,0.00016673,2]
[382617167,1756679449527,-480.0,0.00016673,2]
[382617168,1756679449536,-480.0,0.00016673,2]
[382617169,1756679449546,-480.0,0.00016673,2]
[382617170,1756679449555,-480.0,0.00016673,2]
[382617171,1756679449565,-480.0,0.00016673,2]
[382617172,1756679449575,-480.0,0.00016673,2]
[382617173,1756679449585,-1718.87,0.00016673,2]
[382617174,1756679449596,-480.0,0.00016673,2]
[382617175,1756679449605,-480.0,0.00016673,2]
[382617176,1756679449615,-606.05,0.00016673,2]
[382617177,1756679449625,-480.0,0.00016673,2]
[382617178,1756679449634,-480.0,0.00016673,2]
[382617179,1756679449643,-1152.04,0.00016673,2]
[382617180,1756679449653,-500.0,0.00016673,2]
[382617181,1756679449663,-500.0,0.00016673,2]
[382617182,1756679449673,-480.0,0.00016673,2]
[382617183,1756679449683,-13418.05511831,0.00016674,2]
[382617184,1756679449693,-1000.0,0.00016674,2]
[382617185,1756679449703,-151.0,0.000167,2]
[382617186,1756679449713,-151.0,0.000167,2]
[382617187,1756679449723,-151.0,0.000167,2]
[382617188,1756679449733,-500.0,0.00016734,2]
[382617189,1756679449742,-381.0,0.00016753,2]
[382617190,1756679449751,-381.0,0.00016764,2]
[382617191,1756679449762,-163.414,0.00016772,2]
[382617192,1756679449771,-510.94333666,0.00016773,2]
[382617194,1756679449781,-500.0,0.00016773,2]
[382617195,1756679449791,-500.0,0.00016773,2]
[382617196,1756679449800,-500.0,0.00016773,2]
[382617197,1756679449810,-500.0,0.00016773,2]
[382617198,1756679449819,-500.0,0.00016773,2]
[382617199,1756679449829,-500.0,0.00016773,2]
[382617200,1756679449838,-500.0,0.00016773,2]
[382617201,1756679449848,-500.0,0.00016773,2]
[382617202,1756679449857,-501.21878673,0.00016773,2]
[382617203,1756679449867,-500.0,0.00016773,2]
[382617204,1756679449876,-500.0,0.00016773,2]
[382617205,1756679449887,-500.0,0.00016773,2]
[382617207,1756679449897,-300.02526822,0.00016773,2]
[382617208,1756679449948,-500.44109157,0.00016773,2]
[382617209,1756679449958,-500.0,0.00016773,2]
[382617210,1756679449968,-500.0,0.00016773,2]
[382617211,1756679449977,-500.0,0.00016773,2]
[382617212,1756679449987,-500.0,0.00016773,2]
[382617213,1756679449997,-500.0,0.00016773,2]
[382617214,1756679450006,-162.28722497,0.00016773,2]
[382617215,1756679450016,-500.0,0.00016773,2]
[382617216,1756679450025,-500.0,0.00016773,2]
[382617217,1756679450034,-500.0,0.00016773,2]
[382617218,1756679450044,-500.0,0.00016773,2]
[382617219,1756679450053,-500.0,0.00016773,2]
[382617220,1756679450063,-500.0,0.00016773,2]
[382617221,1756679450073,-500.0,0.00016773,2]
[382617222,1756679450082,-502.1843914,0.00016773,2]
[382617223,1756679450092,-500.0,0.00016773,2]
[382617224,1756679450102,-500.0,0.00016773,2]
[382617225,1756679450111,-500.0,0.00016773,2]
[382617226,1756679450120,-500.0,0.00016773,2]
[382617227,1756679450129,-500.0,0.00016773,2]
[382617228,1756679450139,-500.0,0.00016773,2]
[382617229,1756679450148,-500.0,0.00016773,2]
[382617230,1756679450157,-500.0,0.00016773,2]
[382617231,1756679450167,-500.0,0.00016773,2]
[382617232,1756679450176,-500.0,0.00016773,2]
[382617233,1756679450186,-500.0,0.00016773,2]
[382617234,1756679450195,-340.29691415,0.00016773,2]
[382617235,1756679450205,-500.0,0.00016773,2]
[382617236,1756679450215,-259.75959681,0.00016773,2]
[382617237,1756679450224,-1201.4,0.00016773,2]
[382617238,1756679450234,-1201.4,0.00016773,2]
[382617239,1756679450244,-500.0,0.00016773,2]
[382617240,1756679450257,-500.0,0.00016773,2]
[382617241,1756679450267,-500.0,0.00016773,2]
[382617242,1756679450276,-480.0,0.00016773,2]
[382617243,1756679450286,-1873.42,0.00016773,2]
[382617244,1756679450297,-480.0,0.00016773,2]
[382617245,1756679450307,-1038.32,0.00016773,2]
[382617246,1756679450317,-660.29,0.00016773,2]
[382617247,1756679450327,-1302.48,0.00016773,2]
[382617248,1756679450336,-1019.61,0.00016773,2]
[382617249,1756679450346,-1019.61,0.00016773,2]
[382617250,1756679450355,-1019.61,0.00016773,2]